bitfinex/quotes_SOLUSD_20250125
["timestamp","ask_amount","ask_price","bid_price","bid_amount"]
[1737765526590,0.03,249.94,249.83,4.0656]
[1737765526770,0.03,249.94,249.87,20.0]
[1737765526978,0.03,249.94,249.88,1.5059]
[1737765527189,0.03,249.94,249.89,23.776884]
[1737765527492,0.03,249.94,249.91,23.776884]
[1737765531098,0.063,249.97,249.94,24.0008]
[1737765531465,0.063,249.97,249.9,6.5694]
[1737765531662,0.063,249.97,249.9,10.5708]
[1737765533303,0.063,249.97,249.91,27.778184]
[1737765536172,0.063,249.97,249.94,20.0]
[1737765536899,0.063,249.97,249.95,23.776884]
[1737765537894,0.063,249.97,249.95,27.777684]
[1737765540405,0.063,249.97,249.95,28.777684]
[1737765540577,0.063,249.97,249.94,4.0009]
[1737765540778,0.063,249.97,249.83,104.763]
[1737765541718,0.063,249.97,249.83,0.063]
[1737765541884,20.0,249.96,249.83,0.063]
[1737765542206,20.0,249.92,249.83,0.063]
[1737765543188,20.0,249.88,249.83,0.063]
[1737765545117,0.3879139,249.87,249.83,0.063]
[1737765545781,24.1647979,249.87,249.83,0.063]
[1737765545979,23.776884,249.84,249.62,104.7]
[1737765546218,23.776884,249.84,249.6,5.5629]
[1737765546219,0.3879139,249.83,249.6,1.5567]
[1737765546793,23.776884,249.82,249.6,1.5567]
[1737765547022,0.3879139,249.81,249.6,1.5567]
[1737765547485,23.776884,249.8,249.6,1.5567]
[1737765547686,0.3879139,249.79,249.6,1.5567]
[1737765547997,0.643,249.82,249.61,23.776884]
[1737765548208,1.0309139,249.82,249.61,23.776884]
[1737765549018,6.1969,249.77,249.58,0.063]
[1737765549230,1.61781621,249.83,249.59,5.0065]
[1737765549521,6.1969,249.93,249.71,21.0]
[1737765549691,6.1969,249.93,249.75,20.0]
[1737765549882,6.1969,249.93,249.76,23.776884]
[1737765550086,6.1969,249.93,249.76,128.476884]
[1737765550304,0.02356934,249.98,249.8,23.776884]
[1737765550491,0.02356934,249.98,249.8,128.476884]
[1737765550699,0.02356934,249.98,249.85,20.0]
[1737765550890,0.02356934,249.98,249.85,124.7]
[1737765551207,0.02356934,249.98,249.91,23.776884]
[1737765551417,0.02356934,249.98,249.91,104.7]
[1737765553417,0.02356934,249.98,249.92,23.776884]
[1737765554616,0.02356934,249.98,249.92,128.476884]
[1737765555518,0.02356934,249.98,249.92,104.7]
[1737765555700,0.02356934,249.98,249.75,149.5127]
[1737765555892,20.0,249.93,249.77,20.35]
[1737765556099,20.0,249.93,249.75,106.3127]
[1737765556311,20.0,249.93,249.76,4.0038]
[1737765556599,20.0,249.93,249.77,23.776884]
[1737765556798,0.02356934,249.98,249.81,23.776884]
[1737765557128,0.02356934,249.98,249.81,128.476884]
[1737765557714,0.02356934,249.98,249.82,4.0028]
[1737765558027,0.02356934,249.98,249.85,23.776884]
[1737765558324,0.02356934,249.98,249.84,20.0]
[1737765558490,0.02356934,249.98,249.82,23.776884]
[1737765559733,0.02356934,249.98,249.81,104.7]
[1737765560234,0.41148324,249.98,249.75,106.3127]
[1737765560439,20.0,249.94,249.75,106.3127]
[1737765560642,24.1647979,249.93,249.75,106.3127]
[1737765560825,20.0,249.86,249.75,106.3127]
[1737765561134,20.0,249.86,249.75,1.6127]
[1737765561750,1.0,250.01,249.76,23.776884]
[1737765561906,20.0,249.96,249.76,23.776884]
[1737765562107,20.0,249.92,249.76,23.776884]
[1737765565422,0.03,249.96,249.78,23.776884]
[1737765566145,0.03,249.96,249.8,23.776884]
[1737765567112,0.03,249.96,249.79,27.780184]
[1737765567425,0.3879139,249.95,249.75,110.3796]
[1737765567627,0.3879139,249.95,249.75,106.3757]
[1737765567810,0.3879139,249.95,249.75,110.3795]
[1737765568034,0.03,249.96,249.75,110.3795]
[1737765568350,0.03,249.96,249.76,23.776884]
[1737765569028,20.0,249.91,249.76,23.776884]
[1737765569560,20.0,249.91,249.75,110.3795]
[1737765570457,20.0,249.91,249.75,0.063]
[1737765570458,20.0,249.87,249.75,0.063]
[1737765570666,20.0,249.83,249.75,0.063]
[1737765570962,43.776884,249.76,249.75,0.063]
[1737765572863,20.0,249.76,249.75,0.063]
[1737765573037,23.776884,249.77,249.75,0.063]
[1737765575872,6.0523,249.78,249.75,0.063]
[1737765577378,20.0,249.76,249.75,0.063]
[1737765580252,0.03,249.83,249.75,0.063]
[1737765580454,0.3879139,249.82,249.75,0.063]
[1737765580963,20.0,249.8,249.75,0.063]
[1737765581476,20.0,249.78,249.75,0.063]
[1737765586561,0.3879139,249.77,249.75,0.063]
[1737765587663,0.3879139,249.78,249.75,0.063]
[1737765587864,1.0,249.77,249.75,0.063]
[1737765588074,0.3879139,249.76,249.75,0.063]
[1737765589081,0.3879139,249.79,249.75,0.063]
[1737765589989,24.1647979,249.81,249.75,0.063]
[1737765590191,20.0,249.78,249.75,0.063]
[1737765590366,23.776884,249.77,249.75,0.063]
[1737765591204,24.1647979,249.81,249.75,0.063]
[1737765591687,43.776884,249.77,249.75,0.063]
[1737765591888,0.3879139,249.76,249.75,0.063]
[1737765592193,43.776884,249.77,249.75,0.063]
[1737765592595,10.091,249.82,249.75,0.063]
[1737765592779,20.0,249.79,249.75,0.063]
[1737765593173,20.0,249.78,249.75,0.063]
[1737765593373,23.776884,249.81,249.75,0.063]
[1737765593595,23.776884,249.77,249.75,0.063]
[1737765594197,24.1647979,249.78,249.75,0.063]
[1737765594998,43.776884,249.76,249.75,0.063]
[1737765595790,44.1647979,249.76,249.75,0.063]
[1737765598375,43.776884,249.76,249.75,0.063]
[1737765600671,44.1647979,249.76,249.75,0.063]
[1737765600867,57.1847979,249.76,249.75,0.063]
[1737765601170,1.0,249.69,249.59,0.063]
[1737765601390,24.1647979,249.68,249.59,0.063]
[1737765601674,0.3879139,249.68,249.59,0.063]
[1737765602884,23.776884,249.7,249.59,0.063]
[1737765603085,0.3879139,249.69,249.59,0.063]
[1737765605186,0.3879139,249.73,249.59,0.063]
[1737765605795,20.3879139,249.73,249.59,0.063]
[1737765605998,20.0,249.69,249.59,0.063]
[1737765606500,0.3879139,249.71,249.59,0.063]
[1737765607129,24.1647979,249.73,249.59,0.063]
[1737765607431,1.60484749,249.77,249.59,4.0695]
[1737765607591,24.1647979,249.76,249.59,0.063]
[1737765608111,20.0,249.63,249.59,0.063]
[1737765608314,0.3879139,249.62,249.59,0.063]
[1737765608516,20.0,249.63,249.59,0.063]
[1737765608812,20.0,249.6,249.59,0.063]
[1737765609725,1.602883,249.62,249.59,0.063]
[1737765609900,0.3879139,249.71,249.59,0.063]
[1737765610099,1.602781,249.63,249.59,0.063]
[1737765610395,1.0,249.8,249.59,0.063]
[1737765610611,1.602343,249.7,249.59,0.063]
[1737765610805,1.0309139,249.81,249.59,0.063]
[1737765611118,1.602096,249.8,249.6,7.6621]
[1737765611325,1.602096,249.8,249.62,4.006]
[1737765611505,0.03,249.83,249.62,4.006]
[1737765611506,0.03,249.83,249.65,23.776884]
[1737765611838,1.632096,249.83,249.65,128.476884]
[1737765611996,0.03,249.83,249.67,23.776884]
[1737765612192,0.03,249.83,249.69,23.776884]
[1737765612397,0.03,249.83,249.75,23.776884]
[1737765612694,0.03,249.83,249.76,6.1198]
[1737765612905,0.03,249.96,249.81,1.5423]
[1737765613335,0.03,249.96,249.82,4.0028]
[1737765613541,0.03,249.96,249.83,23.776884]
[1737765613744,0.03,249.96,249.84,6.1198]
[1737765613905,0.03,249.96,249.85,23.776884]
[1737765614243,0.03,249.96,249.84,110.8198]
[1737765614244,0.03,249.96,249.84,6.1198]
[1737765615546,20.0,249.91,249.84,6.1198]
[1737765615703,20.0,249.87,249.81,1.5423]
[1737765618237,0.4179139,249.96,249.81,1.5423]
[1737765619029,23.776884,249.94,249.81,1.5423]
[1737765619335,23.776884,249.91,249.81,1.5423]
[1737765619545,0.3879139,249.9,249.81,1.5423]
[1737765620434,24.1647979,249.94,249.81,1.5423]
[1737765620658,2.0,249.92,249.77,6.1198]
[1737765620843,0.3879139,249.91,249.77,6.1198]
[1737765621053,23.776884,249.89,249.77,6.1198]
[1737765621255,0.3879139,249.88,249.77,6.1198]
[1737765621755,20.0,249.82,249.77,6.1198]
[1737765622237,20.0,249.82,249.77,6.1828]
[1737765622555,0.03,249.92,249.77,6.1828]
[1737765622848,0.4179139,249.92,249.77,6.1828]
[1737765623347,20.0,249.86,249.77,6.1828]
[1737765624020,0.4179139,249.92,249.77,6.1828]
[1737765624219,6.1828,249.88,249.77,6.1828]
[1737765624453,20.0,249.85,249.77,6.1828]
[1737765625135,20.0,249.87,249.77,6.1828]
[1737765625635,23.776884,249.86,249.77,6.1828]
[1737765626953,24.1647979,249.86,249.77,6.1828]
[1737765629147,0.3879139,249.86,249.77,6.1828]
[1737765629427,0.3879139,249.86,249.77,0.063]
[1737765629621,23.776884,249.84,249.77,0.063]
[1737765629858,0.3879139,249.83,249.77,0.063]
[1737765630427,23.776884,249.8,249.77,0.063]
[1737765630650,0.3879139,249.8,249.77,0.063]
[1737765630849,1.3879139,249.8,249.77,0.063]
[1737765631058,23.776884,249.77,249.62,7.6125]
[1737765631274,0.3879139,249.76,249.62,7.6125]
[1737765632163,23.776884,249.75,249.62,7.6125]
[1737765632347,0.3879139,249.74,249.62,7.6125]
[1737765632749,20.0,249.68,249.62,7.6125]
[1737765634071,7.6125,249.67,249.62,7.6125]
[1737765634371,7.6125,249.67,249.62,7.6755]
[1737765635269,5.9459,249.67,249.62,7.6755]
[1737765635974,1.97325053,249.82,249.62,7.6755]
[1737765636174,0.3879139,249.82,249.62,7.6755]
[1737765636376,5.9459,249.75,249.62,7.6755]
[1737765636574,20.0,249.72,249.62,7.6755]
[1737765638262,5.9459,249.75,249.62,112.3755]
[1737765638477,0.3879139,249.84,249.62,116.3815]
[1737765638871,20.0,249.81,249.62,112.3755]
[1737765639178,20.0,249.79,249.62,112.3755]
[1737765639388,20.0,249.75,249.62,7.6755]
[1737765641184,0.3879139,249.74,249.62,7.6755]
[1737765642375,23.776884,249.77,249.62,7.6755]
[1737765642376,0.3879139,249.76,249.62,7.6755]
[1737765644483,35.796884,249.74,249.62,7.6755]
[1737765644786,20.0,249.65,249.62,0.063]
[1737765644962,23.776884,249.64,249.62,0.063]
[1737765645565,24.1647979,249.7,249.62,0.063]
[1737765645765,20.0,249.67,249.62,0.063]
[1737765646266,24.1647979,249.66,249.62,0.063]
[1737765646471,0.3879139,249.7,249.62,0.063]
[1737765647973,20.0,249.67,249.62,0.063]
[1737765649679,19.96010586,249.67,249.62,0.063]
[1737765653394,19.96010586,249.67,249.5,104.5604998]
[1737765653591,24.1647979,249.7,249.5,104.4604998]
[1737765653993,25.1647979,249.7,249.5,104.4604998]
[1737765654170,24.1647979,249.7,249.49,0.063]
[1737765654392,23.776884,249.7,249.49,0.063]
[1737765655092,1.62745713,249.71,249.5,23.776884]
[1737765655295,0.03,249.77,249.5,24.776884]
[1737765655474,0.03,249.77,249.56,23.776884]
[1737765656482,1.5850064,249.77,249.58,23.776884]
[1737765656668,0.03,249.77,249.58,23.776884]
[1737765657601,20.0,249.72,249.57,7.6771]
[1737765658111,0.4179139,249.77,249.57,7.6771]
[1737765658403,20.0,249.73,249.58,23.776884]
[1737765658903,0.03,249.77,249.58,23.776884]
[1737765659272,20.03,249.77,249.58,23.776884]
[1737765660198,20.0,249.73,249.58,104.4604998]
[1737765660875,0.03,249.77,249.59,23.776884]
[1737765661201,0.03,249.77,249.57,112.1375998]
[1737765662174,0.03,249.77,249.58,23.776884]
[1737765663099,0.03,249.77,249.62,23.776884]
[1737765663295,0.03,249.77,249.62,128.2373838]
[1737765663495,0.03,249.77,249.64,23.776884]
[1737765666190,0.03,249.77,249.64,132.2429838]
[1737765666387,0.03,249.77,249.64,132.20308965]
[1737765666986,0.03,249.77,249.64,128.19748965]
[1737765668403,0.03,249.77,249.64,132.20308965]
[1737765669196,0.03,249.77,249.64,128.19748965]
[1737765670184,0.03,249.77,249.61,104.4604998]
[1737765673279,0.03,249.77,249.58,1.5762]
[1737765673280,0.03,249.77,249.59,23.776884]
[1737765675401,0.03,249.77,249.63,23.776884]
[1737765675604,0.03,249.77,249.62,20.0]
[1737765676089,0.03,249.77,249.63,20.0]
[1737765676678,0.03,249.77,249.63,152.2431838]
[1737765676994,0.03,249.77,249.64,23.776884]
[1737765677913,0.03,249.77,249.71,23.776884]
[1737765678104,0.03,249.77,249.71,128.2373838]
[1737765678486,0.03,249.77,249.75,23.776884]
[1737765678688,0.03,249.87,249.79,23.776884]
[1737765678892,0.03,249.87,249.8,23.776884]
[1737765680382,0.03,249.87,249.81,1.5074]
[1737765680613,0.03,249.87,249.82,23.776884]
[1737765680800,0.03,249.87,249.82,128.2373838]
[1737765681318,0.03,249.87,249.86,23.776884]
[1737765681519,0.03,249.87,249.86,128.2373838]
[1737765682622,0.03,249.87,249.82,114.0803998]
[1737765682907,0.03,249.87,249.83,23.776884]
[1737765683905,0.03,249.87,249.83,129.2373838]
[1737765684590,0.03,249.87,249.83,133.2398838]
[1737765687199,0.02373389,249.96,249.83,133.2398838]
[1737765688913,0.02373389,249.96,249.82,104.4604998]
[1737765689101,6.60653389,249.96,249.82,104.4604998]
[1737765689428,20.0,249.93,249.82,104.4604998]
[1737765689605,20.0,249.93,249.83,23.776884]
[1737765689806,0.02373389,249.96,249.83,128.2373838]
[1737765691031,0.02373389,249.96,249.82,104.4604998]
[1737765691208,0.02373389,249.96,249.83,23.776884]
[1737765691622,0.02373389,249.96,249.83,128.2373838]
[1737765691820,1.5384,249.95,249.83,104.4604998]
[1737765692717,1.5384,249.95,249.77,23.776884]
[1737765692914,1.5384,249.95,249.77,128.2373838]
[1737765693635,1.9263139,249.95,249.77,104.4604998]
[1737765693840,20.0,249.94,249.77,104.4604998]
[1737765694818,20.0,249.94,249.83,0.063]
[1737765695318,0.3879139,249.93,249.83,0.063]
[1737765695524,6.5828,249.92,249.83,0.063]
[1737765697048,23.776884,249.91,249.83,0.063]
[1737765697342,0.3879139,249.9,249.83,0.063]
[1737765699545,20.0,249.88,249.83,0.063]
[1737765699739,20.3879139,249.88,249.83,0.063]
[1737765700040,0.3879139,249.88,249.83,0.063]
[1737765700240,23.776884,249.91,249.83,0.063]
[1737765700454,6.5828,249.92,249.83,0.063]
[1737765700743,20.0,249.89,249.83,0.063]
[1737765705052,1.5384,249.95,249.83,0.063]
[1737765706044,1.5384,249.95,249.84,23.776884]
[1737765707823,1.5384,249.95,249.83,104.5234998]
[1737765708934,1.5384,249.95,249.83,0.063]
[1737765715471,1.9263139,249.95,249.83,0.063]
[1737765717076,23.776884,249.94,249.83,0.063]
[1737765717254,0.3879139,249.93,249.83,0.063]
[1737765717459,6.0046,249.92,249.83,0.063]
[1737765717649,1.6465,249.9,249.83,0.063]
[1737765717850,0.3879139,249.89,249.83,0.063]
[1737765719657,20.0,249.84,249.83,0.063]
[1737765720654,43.776884,249.84,249.83,0.063]
[1737765720860,1.6465,249.82,249.67,104.4604998]
[1737765721168,20.0,249.78,249.63,104.5234998]
[1737765721676,20.0,249.81,249.64,23.776884]
[1737765724252,1.6465,249.82,249.64,128.2373838]
[1737765724565,1.6465,249.82,249.68,23.776884]
[1737765728067,20.0,249.81,249.68,23.776884]
[1737765728785,20.0,249.81,249.67,20.0]
[1737765729166,20.0,249.81,249.64,104.4604998]
[1737765729770,20.0,249.81,249.65,23.776884]
[1737765730494,20.0,249.81,249.65,104.4604998]
[1737765730789,44.1647979,249.81,249.65,104.4604998]
[1737765733287,23.776884,249.8,249.63,0.063]
[1737765733494,23.776884,249.77,249.63,0.063]
[1737765733790,0.3879139,249.76,249.63,0.063]
[1737765733976,1.6031,249.78,249.63,0.063]
[1737765734175,1.6031,249.78,249.64,23.776884]
[1737765734910,1.6031,249.78,249.64,128.2373838]
[1737765735263,1.57223943,249.82,249.71,1.0]
[1737765735471,23.776884,249.86,249.71,1.0]
[1737765735969,0.6003279,249.86,249.69,0.3996721]
[1737765737018,20.0,249.8,249.69,0.3996721]
[1737765737294,20.0,249.76,249.64,104.4604998]
[1737765737492,20.0,249.76,249.63,105.9231719]
[1737765737688,23.776884,249.79,249.63,105.9231719]
[1737765737865,20.0,249.72,249.63,104.5234998]
[1737765738069,20.0,249.72,249.63,0.063]
[1737765738275,1.6031,249.71,249.63,0.063]
[1737765740106,1.6031,249.71,249.65,1.0]
[1737765740272,1.6031,249.71,249.67,1.0]
[1737765740674,1.6031,249.71,249.64,0.3996721]
[1737765741196,1.6031,249.71,249.67,0.063]
[1737765743707,23.776884,249.7,249.67,0.063]
[1737765745014,0.5114,249.69,249.63,0.063]
[1737765745183,23.776884,249.68,249.63,0.063]
[1737765745686,0.6003279,249.66,249.58,0.063]
[1737765745911,0.6003279,249.66,249.5,0.063]
[1737765745912,6.5672,249.65,249.5,0.063]
[1737765746088,23.776884,249.64,249.5,0.063]
[1737765746495,23.776884,249.62,249.5,0.063]
[1737765746695,23.776884,249.6,249.5,0.063]
[1737765746904,23.776884,249.57,249.5,0.063]
[1737765747102,20.0,249.52,249.45,0.0326]
[1737765747300,20.0,249.48,249.42,0.03]
[1737765747518,20.0,249.44,249.42,0.03]
[1737765748321,6.0248,249.43,249.42,0.03]
[1737765748619,20.0,249.4,249.39,0.063]
[1737765749606,20.0,249.44,249.39,0.063]
[1737765750014,7.5922,249.49,249.39,0.063]
[1737765750320,1.5674,249.56,249.41,0.3996721]
[1737765750695,1.5674,249.56,249.42,1.0]
[1737765751023,23.776884,249.55,249.42,1.0]
[1737765751311,20.0,249.52,249.42,1.0]
[1737765751505,7.62905776,249.59,249.46,0.3996721]
[1737765751813,6.0248,249.66,249.52,1.3996721]
[1737765751993,6.0248,249.66,249.54,0.3996721]
[1737765752190,20.0,249.63,249.52,1.3996721]
[1737765752391,1.5674,249.68,249.58,0.3996721]
[1737765752616,6.0248,249.73,249.59,1.0]
[1737765752929,6.0248,249.73,249.62,0.3996721]
[1737765753230,20.0,249.69,249.57,0.3996721]
[1737765754716,20.0,249.68,249.53,0.3996721]
[1737765754917,0.6003279,249.71,249.53,0.3996721]
[1737765755098,23.776884,249.72,249.53,0.3996721]
[1737765755299,23.776884,249.66,249.53,0.3996721]
[1737765755604,23.776884,249.66,249.56,1.0]
[1737765755810,16.03021,249.67,249.56,1.0]
[1737765756013,6.6251279,249.73,249.56,1.0]
[1737765756221,23.776884,249.72,249.56,1.0]
[1737765756408,23.776884,249.69,249.56,1.0]
[1737765759110,20.0,249.7,249.56,1.3996721]
[1737765759628,23.776884,249.69,249.58,1.0]
[1737765760922,20.0,249.7,249.58,1.0]
[1737765761429,20.0,249.69,249.58,1.0]
[1737765761628,20.0,249.69,249.6,1.0]
[1737765762040,16.029574,249.73,249.61,0.3996721]
[1737765762324,13.17564195,249.74,249.65,1.3996721]
[1737765763032,13.17564195,249.74,249.65,1.0]
[1737765763231,13.17564195,249.74,249.63,1.3996721]
[1737765763706,13.17564195,249.74,249.63,1.0]
[1737765763906,13.17564195,249.74,249.61,1.3996721]
[1737765765907,20.0,249.71,249.59,1.0]
[1737765766108,20.0,249.7,249.62,1.0]
[1737765766543,20.0,249.7,249.58,112.5326998]
[1737765768228,23.776884,249.69,249.58,8.0722]
[1737765768413,20.0,249.66,249.58,8.0722]
[1737765768619,43.776884,249.7,249.58,8.0722]
[1737765769936,43.776884,249.7,249.58,5.6563]
[1737765770109,43.776884,249.7,249.58,1.6032]
[1737765770311,43.776884,249.7,249.54,0.3996721]
[1737765770506,55.796884,249.7,249.52,0.3996721]
[1737765770715,23.776884,249.68,249.5,0.3996721]
[1737765772141,0.6003279,249.63,249.42,0.4296721]
[1737765772325,0.6003279,249.6,249.42,0.03]
[1737765772530,23.776884,249.59,249.42,0.03]
[1737765773217,23.776884,249.61,249.44,0.3996721]
[1737765773421,23.776884,249.59,249.44,0.3996721]
[1737765774025,23.776884,249.59,249.42,1.5936]
[1737765774747,20.0,249.52,249.42,1.5936]
[1737765774950,20.0,249.48,249.42,1.5936]
[1737765775533,20.0,249.48,249.42,0.03]
[1737765775947,20.0,249.44,249.42,0.03]
[1737765776626,20.0,249.48,249.42,0.03]
[1737765777041,23.776884,249.51,249.42,0.03]
[1737765777251,20.0,249.48,249.42,0.03]
[1737765778041,20.0,249.44,249.42,0.03]
[1737765779558,3.22,249.55,249.42,0.03]
[1737765780246,23.776884,249.54,249.42,0.03]
[1737765781658,1.57939294,249.55,249.44,0.3996721]
[1737765781851,2.5473,249.64,249.43,1.9632721]
[1737765782072,1.59630873,249.61,249.45,0.3996721]
[1737765782236,1.59630873,249.61,249.43,1.9632721]
[1737765782442,23.776884,249.6,249.43,1.5636]
[1737765783052,0.6003279,249.61,249.43,1.5636]
[1737765783053,20.0,249.51,249.43,1.5636]
[1737765783241,1.60444747,249.64,249.48,0.3996721]
[1737765783438,23.776884,249.66,249.48,0.3996721]
[1737765783630,24.311484,249.64,249.48,0.3996721]
[1737765784032,20.0,249.6,249.48,0.3996721]
[1737765784361,20.0,249.48,249.44,6.0456]
[1737765784938,20.0,249.56,249.45,0.3996721]
[1737765785139,12.02,249.62,249.44,6.0456]
[1737765785140,1.57186878,249.6,249.47,0.3996721]
[1737765785339,4.311484,249.64,249.47,0.3996721]
[1737765785550,20.0,249.56,249.45,0.3996721]
[1737765785732,23.776884,249.59,249.44,6.0456]
[1737765785942,23.776884,249.63,249.44,6.0456]
[1737765787268,20.0,249.56,249.44,6.0456]
[1737765787442,20.0,249.52,249.44,6.0456]
[1737765788754,26.0456,249.52,249.46,0.3996721]
[1737765788963,26.0456,249.52,249.44,5.9452721]
[1737765789168,20.0,249.6,249.44,5.9452721]
[1737765789351,6.0456,249.53,249.44,5.9452721]
[1737765789549,20.0,249.59,249.44,5.9452721]
[1737765789953,20.0,249.55,249.44,5.9752721]
[1737765791751,0.063,249.61,249.44,5.9752721]
[1737765792676,1.63853631,249.61,249.44,5.9752721]
[1737765794970,13.65853631,249.61,249.44,5.9752721]
[1737765795170,35.796884,249.58,249.44,5.9752721]
[1737765795476,20.0,249.55,249.44,5.9752721]
[1737765796055,32.02,249.55,249.44,5.9752721]
[1737765796274,20.0,249.51,249.44,5.9752721]
[1737765797361,32.02,249.51,249.44,0.03]
[1737765798186,20.0,249.46,249.44,0.03]
[1737765798873,25.381375,249.45,249.44,0.03]
[1737765801050,37.401375,249.45,249.44,0.03]
[1737765803881,38.401375,249.45,249.44,0.03]
[1737765804473,39.938975,249.45,249.44,0.03]
[1737765805862,20.0,249.34,249.31,42.50324189]
[1737765806277,20.0,249.34,249.31,38.82324189]
[1737765806477,20.0,249.41,249.31,38.82324189]
[1737765806663,20.0,249.42,249.31,38.82324189]
[1737765806862,20.0,249.38,249.31,38.82324189]
[1737765808566,20.0,249.36,249.31,38.82324189]
[1737765809389,12.03,249.41,249.31,38.82324189]
[1737765811496,13.03,249.41,249.31,38.82324189]
[1737765811972,12.03,249.37,249.31,38.82324189]
[1737765812158,35.806884,249.36,249.31,14.62224189]
[1737765812365,35.806884,249.36,249.31,1.85224189]
[1737765812865,35.806884,249.36,249.29,0.03]
[1737765813074,20.0,249.33,249.29,0.03]
[1737765815286,26.598,249.33,249.29,0.03]
[1737765815492,26.598,249.33,249.31,0.03]
[1737765816604,28.17668329,249.33,249.31,0.03]
[1737765819894,28.17668329,249.33,249.29,0.03]
[1737765821080,6.598,249.33,249.29,0.03]
[1737765823580,23.776884,249.3,249.29,0.03]
[1737765824080,23.776884,249.26,249.17,6.0749]
[1737765824998,20.0,249.23,249.11,6.0749]
[1737765826200,2.41054417,249.3,249.11,6.0749]
[1737765826775,20.0,249.28,249.11,6.0749]
[1737765826975,6.598,249.33,249.12,25.421284]
[1737765827380,20.0,249.3,249.29,0.03]
[1737765828069,6.598,249.33,249.29,0.03]
[1737765828484,20.0,249.3,249.29,0.03]
[1737765829101,6.598,249.33,249.29,0.03]
[1737765829474,0.063,249.36,249.29,0.03]
[1737765832710,0.063,249.36,249.25,6.0749]
[1737765833012,1.668185,249.36,249.25,6.0749]
[1737765833508,23.776884,249.35,249.11,1.6646]
[1737765833712,23.776884,249.35,249.12,23.776884]
[1737765834214,23.776884,249.35,249.11,1.6646]
[1737765834595,27.08836782,249.35,249.11,1.6646]
[1737765835413,28.08836782,249.35,249.11,1.6646]
[1737765835903,20.0,249.32,249.11,1.6646]
[1737765836289,20.0,249.32,249.12,6.2181]
[1737765837014,20.0,249.28,249.12,6.2181]
[1737765837207,1.6575,249.27,249.1,0.1]
[1737765837711,20.0,249.25,249.1,0.1]
[1737765839007,2.6575,249.32,249.1,0.1]
[1737765839214,4.96898382,249.32,249.12,1.6646]
[1737765839413,3.31148382,249.32,249.12,1.6646]
[1737765840219,3.31148382,249.32,249.13,23.776884]
[1737765840403,3.27151142,249.32,249.13,23.776884]
[1737765840889,3.27151142,249.32,249.12,1.6646]
[1737765841616,20.0,249.31,249.12,1.6646]
[1737765842215,20.0,249.27,249.12,1.6646]
[1737765842707,20.0,249.23,249.12,1.6646]
[1737765843286,20.0,249.23,249.11,6.2181]
[1737765849017,21.5591209,249.23,249.11,6.2181]
[1737765851390,21.5591209,249.23,249.11,6.2481]
[1737765853316,27.8072209,249.23,249.11,6.2481]
[1737765855733,7.8072209,249.23,249.11,6.2481]
[1737765855901,6.2481,249.23,249.12,1.501]
[1737765856222,1.60289578,249.27,249.12,1.501]
[1737765856420,3.30859692,249.31,249.12,1.501]
[1737765856624,6.2481,249.3,249.12,1.501]
[1737765857805,23.776884,249.29,249.12,1.501]
[1737765859324,20.0,249.26,249.12,1.501]